[Event "98th Caplin Hastings Masters 2024-25"]
[Site "Hastings"]
[Date "2025.01.03"]
[Round "9.1"]
[White "Gormally, Daniel W"]
[Black "Xue, Haowen"]
[Result "1/2-1/2"]
[ECO "E12"]
[WhiteElo "2424"]
[BlackElo "2502"]
[Annotator "TA"]
[PlyCount "27"]
[EventDate "2024.12.23"]
[EventType "swiss"]
[EventCountry "ENG"]
[SourceTitle "playchess.com"]
[Source "ChessBase"]
[SourceQuality "1"]
[TimeControl "5400+30"]

{[%evp 14,27,20,23,24,13,21,20,23,22,21,19,8,15,11,12]} 1. d4 {[%emt 0:00:04]} Nf6 {[%emt 0:00:05]} 2. Nf3 {[%emt 0:00:06]} b6 {[%emt 0:00:10]} 3. c4 {[%emt 0:01:13]} Bb7 {[%emt 0:00:10]} 4. Nc3 {[%emt 0:01:20]} e6 {[%emt 0:00:16]} 5. a3 {[%emt 0:00:27]} Ne4 {[%emt 0:00:14]} 6. Nxe4 {[%emt 0:00:12]} Bxe4 {[%emt 0:00:05]} 7. Bf4 {[%emt 0:00:49]} Be7 {[%emt 0:00:55]} 8. e3 {[%emt 0:00:07]} d6 {[%emt 0:00:25]} 9. Bd3 {[%emt 0:00:09]} Bxd3 {[%emt 0:00:21]} 10. Qxd3 {[%emt 0:00:07]} Nd7 {[%emt 0:00:11]} 11. e4 {[%emt 0:06:27]} a5 {[%emt 0:10:51]} 12. O-O {[%emt 0:02:49]} a4 {[%emt 0:01:03]} 13. Rad1 {[%emt 0:00:42]} O-O {[%emt 0:00:29]} 14. Rfe1 {[%emt 0:00:29]} 1/2-1/2

[Event "98th Caplin Hastings Masters 2024-25"]
[Site "Hastings"]
[Date "2025.01.03"]
[Round "9.2"]
[White "Zhang, Pengxiang"]
[Black "Ghazarian, Kirk"]
[Result "1/2-1/2"]
[ECO "B31"]
[WhiteElo "2567"]
[BlackElo "2501"]
[Annotator "TA"]
[PlyCount "121"]
[EventDate "2024.12.23"]
[EventType "swiss"]
[EventCountry "ENG"]
[SourceTitle "playchess.com"]
[Source "ChessBase"]
[SourceQuality "1"]
[TimeControl "5400+30"]

{[%evp 49,121,-9,0,-25,-11,-29,0,0,0,0,4,0,5,5,6,0,0,0,0,0,0,0,0,0,0,0,0,0,0,0,0,0,0,0,0,0,0,0,0,0,0,0,0,0,0,0,0,0,0,0,0,0,0,0,0,0,0,0,0,0,0,0,0,0,0,0,0,0,0,0,8,8,8,8]} 1. e4 {[%emt 0:00:03]} c5 {[%emt 0:00:19]} 2. Nf3 {[%emt 0:00:08]} Nc6 {[%emt 0:00:10]} 3. Nc3 {[%emt 0:00:53]} g6 {[%emt 0:00:40]} 4. Bb5 {[%emt 0:03:26]} Bg7 {[%emt 0:00:34]} 5. O-O {[%emt 0:00:09]} Nd4 {[%emt 0:04:57]} 6. Nxd4 {[%emt 0:03:59]} cxd4 {[%emt 0:00:07]} 7. Ne2 {[%emt 0:00:03]} a6 {[%emt 0:07:48]} 8. Bc4 {[%emt 0:07:32]} b5 {[%emt 0:13:59]} 9. Bb3 {[%emt 0:04:15]} Bb7 {[%emt 0:02:14]} 10. d3 {[%emt 0:00:59]} d5 {[%emt 0:02:14]} 11. c3 {[%emt 0:14:12]} dxe4 {[%emt 0:09:04]} 12. dxe4 {[%emt 0:00:30]} Bxe4 {[%emt 0:07:03]} 13. Nxd4 {[%emt 0:00:27]} Nf6 {[%emt 0:00:27]} 14. a4 {[%emt 0:00:04]} O-O {[%emt 0:02:45]} 15. axb5 {[%emt 0:07:19]} axb5 {[%emt 0:00:17]} 16. Rxa8 {[%emt 0:00:07]} Qxa8 {[%emt 0:02:55]} 17. f3 {[%emt 0:00:11]} Bc6 {[%emt 0:05:02]} 18. Qe2 {[%emt 0:01:47]} b4 {[%emt 0:05:30]} 19. Qc4 {[%emt 0:24:44]} Bd5 {[%emt 0:01:30]} 20. Qxb4 {[%emt 0:01:35]} Rb8 {[%emt 0:02:15]} 21. Bxd5 {[%emt 0:00:21]} Nxd5 {[%emt 0:00:12]} 22. Qc4 {[%emt 0:00:17]} Rc8 {[%emt 0:06:15]} 23. Qd3 {[%emt 0:01:52]} Qa7 {[%emt 0:03:10]} 24. Kh1 {[%emt 0:03:40]} Bxd4 {[%emt 0:00:31]} 25. cxd4 {[%emt 0:00:23]} Qa1 {[%emt 0:02:42]} 26. Qd1 {[%emt 0:00:59]} Qb1 {[%emt 0:01:25]} 27. Kg1 {[%emt 0:02:59]} Nb4 {[%emt 0:06:47]} 28. h4 {[%emt 0:04:22]} Qc2 {[%emt 0:02:32]} 29. Qxc2 {[%emt 0:11:22]} Rxc2 {[%emt 0:02:26]} 30. Bh6 {[%emt 0:00:03]} Rxb2 {[%emt 0:01:30]} 31. Ra1 {[%emt 0:00:02]} Na2 {[%emt 0:01:19]} 32. Re1 {[%emt 0:00:19]} Rb7 {[%emt 0:07:51]} 33. Ra1 {[%emt 0:02:19]} Rb2 {[%emt 0:00:00]} 34. Re1 {[%emt 0:00:48]} Rb7 {[%emt 0:00:00]} 35. d5 {[%emt 0:02:18]} f6 {[%emt 0:00:00]} 36. Re3 {[%emt 0:01:11]} Rb1+ {[%emt 0:00:00]} 37. Kh2 {[%emt 0:00:10]} Kf7 {[%emt 0:00:00]} 38. d6 {[%emt 0:01:45]} exd6 {[%emt 0:00:00]} 39. Ra3 {[%emt 0:00:00]} Nb4 {[%emt 0:00:00]} 40. Ra7+ {[%emt 0:00:03]} Ke6 {[%emt 0:00:00]} 41. Rxh7 {[%emt 0:00:11]} Nc6 {[%emt 0:00:44]} 42. Rh8 {[%emt 0:01:15]} Rb8 {[%emt 0:01:01]} 43. Rxb8 {[%emt 0:01:32]} Nxb8 {[%emt 0:00:05]} 44. g4 {[%emt 0:00:07]} f5 {[%emt 0:00:53]} 45. Kg3 {[%emt 0:00:05]} fxg4 {[%emt 0:00:16]} 46. fxg4 {[%emt 0:00:07]} Nd7 {[%emt 0:00:23]} 47. Bg7 {[%emt 0:00:38]} Kf7 {[%emt 0:01:00]} 48. Bc3 {[%emt 0:01:06]} Nf8 {[%emt 0:00:47]} 49. Kf4 {[%emt 0:00:12]} Nh7 {[%emt 0:01:51]} 50. Ke4 {[%emt 0:00:22]} Ke6 {[%emt 0:00:11]} 51. Bg7 {[%emt 0:00:22]} Kf7 {[%emt 0:00:08]} 52. Bh8 {[%emt 0:01:08]} Ke6 {[%emt 0:00:25]} 53. Kf4 {[%emt 0:00:45]} Kf7 {[%emt 0:00:25]} 54. Bc3 {[%emt 0:01:11]} Ke6 {[%emt 0:00:18]} 55. Bb4 {[%emt 0:00:03]} Ke7 {[%emt 0:00:24]} 56. Ba3 {[%emt 0:00:14]} Ke6 {[%emt 0:00:04]} 57. Bb2 {[%emt 0:00:20]} Kf7 {[%emt 0:00:24]} 58. Ke4 {[%emt 0:00:16]} Ke6 {[%emt 0:00:04]} 59. Bh8 {[%emt 0:00:03]} Nf8 {[%emt 0:00:44]} 60. Bg7 {[%emt 0:00:15]} Nh7 {[%emt 0:02:02]} 61. Bc3 {[%emt 0:00:32]} 1/2-1/2

[Event "98th Caplin Hastings Masters 2024-25"]
[Site "Hastings"]
[Date "2025.01.03"]
[Round "9.3"]
[White "Laurent-Paoli, Pierre"]
[Black "Vestby-Ellingsen, Mads"]
[Result "1-0"]
[ECO "B84"]
[WhiteElo "2559"]
[BlackElo "2383"]
[Annotator "TA"]
[PlyCount "95"]
[EventDate "2024.12.23"]
[EventType "swiss"]
[EventCountry "ENG"]
[SourceTitle "playchess.com"]
[Source "ChessBase"]
[SourceQuality "1"]
[TimeControl "5400+30"]

{[%evp 12,95,11,11,60,68,81,33,26,27,41,25,120,121,172,154,163,48,87,39,117,101,150,125,148,139,152,149,173,176,169,32,31,32,21,33,51,38,54,76,67,57,55,0,0,0,62,0,0,-13,-11,-25,42,46,40,0,16,13,48,15,16,16,626,647,5505,256,244,262,492,500,489,467,849,806,828,792,2005,1990,5266,4921,29986,29982,29991,29992,29992,29993]} 1. e4 {[%emt 0:02:45]} c5 {[%emt 0:00:21]} 2. Nf3 {[%emt 0:01:03]} d6 {[%emt 0:00:26]} 3. d4 {[%emt 0:00:06]} cxd4 {[%emt 0:00:08]} 4. Nxd4 {[%emt 0:00:03]} Nf6 {[%emt 0:00:10]} 5. Nc3 {[%emt 0:00:10]} a6 {[%emt 0:00:26]} 6. Be2 {[%emt 0:00:14]} e6 {[%emt 0:01:11]} 7. g4 {[%emt 0:02:28][%cal Bg2g4,Bg4g5][%mdl 32]} Qc7 {[%emt 0:04:03]} (7... b5 $11) 8. g5 $14 {[%emt 0:02:33]} Nfd7 {[%emt 0:00:11]} 9. h4 {[%emt 0:08:10]} (9. f4 $16) 9... b5 {[%emt 0:01:58]} 10. a3 {[%emt 0:00:04]} Bb7 {[%emt 0:07:48]} 11. f4 {[%emt 0:07:33]} d5 {[%emt 0:18:56]} (11... Nb6 $11 {remains equal.}) 12. exd5 $16 {[%emt 0:33:04]} b4 {[%emt 0:01:39]} (12... Nb6 $16) 13. axb4 $18 {[%emt 0:00:06]} Bxb4 {[%emt 0:00:16]} 14. Rh3 {[%emt 0:00:18]} (14. O-O $18) 14... Bxd5 {[%emt 0:11:07]} 15. Ra4 {[%emt 0:07:32]} (15. Nf5 $1 $16 {[%cal Rf5g7]} O-O 16. Nxg7) 15... Qb7 {[%emt 0:08:45]} (15... Qb6 $14) 16. Ndb5 $16 {[%emt 0:02:43]} Bxc3+ {[%emt 0:06:38]} (16... Nc6 17. Rxb4 O-O 18. Nxd5 exd5 19. Qxd5 $18) ({Black should try} 16... axb5 17. Rxb4 Bg2 18. Rxb5 Qc7) 17. Nxc3 {[%emt 0:00:06]} Bc6 {[%emt 0:03:38]} 18. Rd4 {[%emt 0:01:33]} O-O {[%emt 0:00:23]} 19. Rd6 {[%emt 0:08:28] White is more active.} Nb6 {[%emt 0:20:28] Black is weak on the dark squares} 20. h5 {[%emt 0:02:22]} Nc8 {[%emt 0:06:57]} 21. Rd8 {[%emt 0:01:06]} (21. h6 $1 $18 {[%cal Rh6g7]} Nxd6 22. Qxd6) 21... Nd7 $14 {[%emt 0:00:27][%cal Bb8d7,Bd7f8,Bf8g6][%mdl 32]} 22. Rxf8+ {[%emt 0:00:16]} Nxf8 {[%emt 0:00:07]} 23. h6 {[%emt 0:00:21]} Ne7 {[%emt 0:00:26]} 24. hxg7 {[%emt 0:03:05]} Nfg6 {[%emt 0:00:07][%cal Oe7f5]} 25. Bd3 {[%emt 0:03:36]} Bg2 {[%emt 0:01:03]} 26. Rh2 {[%emt 0:00:25]} Bf3 {[%emt 0:00:24]} 27. Be2 {[%emt 0:00:47]} (27. Qd2 $14) 27... Bc6 $36 {[%emt 0:00:34][%cal Oe7f5][%mdl 2048] Black is pushing.} 28. Bd3 {[%emt 0:06:04]} (28. Bf1 $11) 28... Bf3 {[%emt 0:00:11]} 29. Be2 {[%emt 0:01:13]} ({White should try} 29. Qd2 $14) 29... Qb6 $11 {[%emt 0:01:31]} 30. Kf1 {[%emt 0:00:10] Dodges Qg1+} Rd8 {[%emt 0:01:01][%mdl 1024] Black has compensation.} 31. Qe1 {[%emt 0:00:01] Dancing on a razor blade.} Bb7 {[%emt 0:00:46]} (31... Bxe2+ $11 32. Rxe2 Kxg7) 32. Bd3 $14 {[%emt 0:01:17]} Nf5 {[%emt 0:01:36] Wards off Qe3} 33. Rh3 {[%emt 0:01:32]} (33. Ne4 Bxe4 34. Bxe4 Qc7 $18) 33... Qc7 {[%emt 0:02:32]} 34. Qf2 {[%emt 0:00:24]} Kxg7 {[%emt 0:00:31]} 35. Qh2 {[%emt 0:01:21]} Kg8 {[%emt 0:00:34]} 36. Rxh7 {[%emt 0:01:19]} Qa5 $2 {[%emt 0:00:40][%mdl 8192] [#]} (36... Rxd3 $11 37. cxd3 Bf3) 37. Bxf5 $1 $18 {[%emt 0:02:07][%cal Oh2h6]} Qa1 {[%emt 0:00:07] [#]} 38. Ne2 $2 {[%emt 0:01:08]} Rd1+ {[%emt 0:00:41]} 39. Kf2 {[%emt 0:00:02][%cal Oh2h6]} Rh1 $2 {[%emt 0:00:40]} (39... exf5 40. Qh6) (39... Rxc1 {keeps fighting.} 40. Nxc1 exf5) 40. Qxh1 {[%emt 0:00:19]} Bxh1 {[%emt 0:00:05]} 41. Bxg6 {[%emt 0:00:02]} Bd5 {[%emt 0:00:41]} (41... Bf3 $142) 42. Rxf7 {[%emt 0:02:02]} ({And not} 42. Bxf7+ Kxh7 43. g6+ Kg7 $11) 42... Bc4 {[%emt 0:00:06]} 43. Be3 {[%emt 0:00:22] Strongly threatening Rc7.} Qh1 {[%emt 0:00:56]} 44. Rh7 {[%emt 0:00:42]} Qd1 {[%emt 0:00:34]} 45. Nc3 {[%emt 0:00:41]} Qf1+ {[%emt 0:00:37]} 46. Kg3 {[%emt 0:00:01]} Qe1+ {[%emt 0:00:30]} 47. Bf2 {[%emt 0:00:05]} Qd2 {[%emt 0:00:06]} 48. Ne4 {[%emt 0:00:52]} 1-0

[Event "98th Caplin Hastings Masters 2024-25"]
[Site "Hastings"]
[Date "2025.01.03"]
[Round "9.4"]
[White "Royal, Shreyas"]
[Black "Kaasen, Tor Fredrik"]
[Result "1-0"]
[ECO "D38"]
[WhiteElo "2522"]
[BlackElo "2473"]
[Annotator "TA"]
[PlyCount "93"]
[EventDate "2024.12.23"]
[EventType "swiss"]
[EventCountry "ENG"]
[SourceTitle "playchess.com"]
[Source "ChessBase"]
[SourceQuality "1"]
[TimeControl "5400+30"]

{[%evp 11,93,9,8,9,6,9,21,31,37,22,37,23,54,62,73,70,156,139,155,161,275,280,305,265,508,277,380,358,380,380,432,432,587,575,883,371,421,375,672,370,375,372,372,379,544,531,651,641,1273,225,218,191,223,224,227,229,233,212,213,217,308,309,362,291,459,463,461,457,494,491,899,891,977,1127,970,1122,1129,1105,1025,1010,2336,3234,5281,3773]} 1. d4 {[%emt 0:00:05]} Nf6 {[%emt 0:01:41]} 2. c4 {[%emt 0:00:03]} e6 {[%emt 0:00:19]} 3. Nf3 {[%emt 1:31:52]} d5 {[%emt 0:00:25]} 4. Nc3 {[%emt 0:00:30]} Bb4 {[%emt 0:01:41]} 5. Qa4+ {[%emt 0:00:30]} Nc6 {[%emt 0:00:07]} 6. e3 {[%emt 0:00:00]} O-O {[%emt 0:00:51]} 7. Qc2 {[%emt 0:00:00]} Re8 {[%emt 0:01:32]} 8. Bd2 {[%emt 0:00:00]} Bf8 {[%emt 0:06:04]} 9. a3 {[%emt 0:02:00] The position is equal.} h6 {[%emt 1:22:20]} 10. Rd1 {[%emt 0:00:30]} a6 {[%emt 0:00:30]} 11. Bc1 {[%emt 0:00:00]} Bd6 {[%emt 0:00:00]} 12. Be2 {[%emt 0:00:00][%cal Bf1e2,Be2c4,Bc4a2][%mdl 32]} dxc4 {[%emt 0:00:00]} 13. e4 $1 {[%emt 0:00:00][%cal Be3e4,Be4e5][%mdl 32]} Nd7 {[%emt 0:00:00]} (13... Bf8 $1 $14) 14. e5 $1 $16 {[%emt 0:00:00]} (14. Bxc4 e5 $11) 14... Bf8 {[%emt 0:00:00]} 15. Bxc4 {[%emt 0:00:00] White is more active.} Nb6 {[%emt 0:00:00]} (15... Ne7 {was called for.} 16. Ba2 c5) 16. Ba2 $18 {[%emt 0:03:00]} Ne7 {[%emt 0:00:00]} 17. h4 {[%emt 0:00:00]} h5 $2 {[%emt 0:00:00]} (17... f5 {was necessary.} 18. exf6 gxf6) 18. Bg5 {[%emt 0:00:00] Bb1 is the strong threat.} Qd7 {[%emt 0:00:00]} 19. Bxe7 {[%emt 0:00:00]} Bxe7 {[%emt 0:00:00] [#]} 20. Ng5 $1 {[%emt 0:00:00] White threatens Qh7+ and mate.} Bxg5 {[%emt 0:00:00]} 21. hxg5 {[%emt 0:00:00]} Qc6 {[%emt 0:00:00]} 22. Rxh5 {[%emt 0:00:00]} Qxg2 {[%emt 0:00:00]} 23. Qh7+ {[%emt 0:00:00]} (23. Ne4 $142) 23... Kf8 {[%emt 0:00:00]} 24. Ne2 {[%emt 0:00:00]} Qg4 $2 {[%emt 0:00:00]} (24... Bd7 25. Qh8+ Ke7 26. Qxg7 Rf8) 25. Ng3 {[%emt 0:00:00]} Bd7 {[%emt 0:00:00]} 26. Qh8+ {[%emt 0:00:00]} Ke7 {[%emt 0:00:00]} 27. Qxg7 {[%emt 0:00:00] [#] Threatening mate with Qf6+.} Rg8 {[%emt 0:00:00]} (27... Rf8 $142 28. Rc1 Rac8) 28. Qf6+ {[%emt 0:00:00]} Kf8 {[%emt 0:00:00]} 29. Rd3 {[%emt 0:00:00]} Be8 {[%emt 0:00:00]} 30. Rf3 $2 {[%emt 0:00:00]} (30. d5 {[%cal Rd5e6]} Nc4 31. dxe6 Qxe6 32. Qxe6 fxe6 33. Rf3+ (33. Bxc4 Bxh5 34. Nxh5 Rxg5 $18) 33... Kg7 34. Bxc4 Bxh5 35. Nxh5+ Kg6 36. Nf4+ Kf5 37. Bxe6+ (37. Nxe6+ Kxe5 38. Nxc7 Raf8 $18) 37... Kxe5 38. Bxg8 Rxg8 39. Nd3+ Kd6 40. Rf6+ Ke7 41. f4) 30... Nd7 {[%emt 0:00:00]} 31. Qf4 $40 {[%emt 0:00:00][%mdl 128] Black is in trouble.} (31. Qxe6 $2 {is the wrong capture.} Qxf3 32. Qh6+ Ke7 $17) 31... Qxf4 {[%emt 0:00:00]} 32. Rxf4 {[%emt 0:00:00][%cal Bf3f4,Bf4h4,Bh4h7,Bh7g7][%mdl 32]} Ke7 {[%emt 0:00:00]} 33. Ne4 {[%emt 0:00:00]} Rd8 {[%emt 0:00:00]} 34. Ke2 {[%emt 0:00:00][%cal Be1e2,Be2e3,Be3e4][%mdl 32]} Rg7 {[%emt 0:02:16] Black is weak on the dark squares} 35. Ke3 {[%emt 0:00:00]} Nb6 {[%emt 0:00:25]} (35... Nf8 {was worth a try.} 36. Rf6 Bc6) 36. Rfh4 {[%emt 0:00:00]} Bc6 {[%emt 0:02:19]} 37. Rh7 {[%emt 0:00:00]} Rxh7 {[%emt 0:05:21]} (37... Rdg8 {is a better defense.} 38. Nf6 Rxg5 39. Nxg8+ Rxg8) 38. Rxh7 {[%emt 0:00:00] aiming for Nf6. White is clearly winning.} Rg8 {[%emt 0:00:04]} 39. f4 {[%emt 0:00:00][%cal Bf2f4,Bf4f5,Bf5f6][%mdl 32]} Bxe4 {[%emt 0:01:45]} 40. Kxe4 {[%emt 0:00:00][%cal Oa2e6][%mdl 4096] Endgame. Black must now prevent Bxe6! KRB-KRN} Nd7 {[%emt 0:01:16]} (40... Kf8 $142 41. d5 exd5+ 42. Bxd5 Nxd5 43. Kxd5 Rg6) 41. f5 {[%emt 0:00:00]} Nf8 {[%emt 0:00:04]} 42. f6+ {[%emt 0:00:00]} Ke8 {[%emt 0:00:04]} 43. Rg7 {[%emt 0:00:00]} Rh8 {[%emt 0:00:07]} 44. d5 {[%emt 0:00:00]} Rh4+ {[%emt 0:01:23]} 45. Kf3 {[%emt 0:00:00] Strongly threatening dxe6.} Rh2 {[%emt 0:00:33]} 46. dxe6 {[%emt 0:00:00]} fxe6 {[%emt 0:00:06]} 47. g6 {[%emt 0:00:00] White took control after the opening.   Weighted Error Value: White=0.44/Black=0.73.  Mistake:       	White=1     	Black=8      Inaccurate:     	White=2     	Black=5      OK:         	White=12    	Black=7      Best:        	White=3     	---        Strong:       	White=3     	---} 1-0

[Event "98th Caplin Hastings Masters 2024-25"]
[Site "Hastings"]
[Date "2025.01.03"]
[Round "9.5"]
[White "Lux, Hugo de Melo"]
[Black "Seo, Jung Min"]
[Result "1/2-1/2"]
[ECO "B43"]
[WhiteElo "2327"]
[BlackElo "2491"]
[Annotator "TA"]
[PlyCount "113"]
[EventDate "2024.12.23"]
[EventType "swiss"]
[EventCountry "ENG"]
[SourceTitle "playchess.com"]
[Source "ChessBase"]
[SourceQuality "1"]
[TimeControl "5400+30"]

{[%evp 15,113,40,32,27,36,17,60,60,64,48,59,0,52,30,30,22,12,-80,-80,-61,-61,-77,-62,-94,-73,-68,-68,-64,-62,-70,-66,-72,-70,-125,-37,-83,-103,-103,-63,-86,-44,-63,-30,-46,-45,-38,-40,-33,0,0,0,0,0,0,0,0,0,0,0,-81,-89,-85,-81,-92,0,0,0,-32,0,0,0,0,0,0,0,0,0,0,0,0,0,-39,0,0,0,-39,-3,-32,0,0,0,0,0,0,0,0,0,0,0,0]} 1. e4 {[%emt 0:02:15]} c5 {[%emt 0:00:08]} 2. Nc3 {[%emt 0:00:32]} a6 {[%emt 0:02:06]} 3. Nf3 {[%emt 0:08:35]} e6 {[%emt 0:00:45]} 4. d4 {[%emt 0:00:13]} cxd4 {[%emt 0:00:03]} 5. Nxd4 {[%emt 0:00:05]} b5 {[%emt 0:00:35]} 6. Bd3 {[%emt 0:00:44]} Bb7 {[%emt 0:00:33]} 7. O-O {[%emt 0:00:39]} Nc6 {[%emt 0:04:55]} 8. Nxc6 {[%emt 0:01:01]} Bxc6 {[%emt 0:00:22]} 9. Qe2 {[%emt 0:00:05]} Qb8 {[%emt 1:25:33]} 10. a4 {[%emt 0:09:12]} bxa4 {[%emt 0:00:00]} 11. Nxa4 {[%emt 0:04:18] White is slightly better.} Nf6 {[%emt 0:01:00]} 12. Be3 {[%emt 1:08:51]} (12. Bxa6 Bd6 (12... Bxe4 13. Be3 $11) 13. g3 Bxe4 $15 (13... Nxe4 14. Be3 $11)) 12... Nxe4 {[%emt 0:00:00]} 13. f3 {[%emt 0:00:00]} ({Much weaker is} 13. Bxa6 Bd6 14. g3 h6 $11) (13. Rfe1 $14) 13... Nf6 {[%emt 0:00:00]} (13... Bxa4 $11 14. Bxe4 Bb5) 14. Nb6 $14 {[%emt 0:00:00]} ({Not} 14. Bxa6 Bd6 15. g3 Nd5 $17) 14... Ra7 {[%emt 0:01:30]} 15. Bxa6 {[%emt 0:01:30]} Bd6 {[%emt 0:00:00]} 16. Nc4 {[%emt 0:00:30]} (16. g3 $1 $11 {remains equal.}) 16... Bxh2+ $17 {[%emt 0:00:00]} 17. Kh1 {[%emt 0:00:00] [#]} Rxa6 {[%emt 0:00:00]} 18. Rxa6 {[%emt 0:00:00] [#]} Nh5 {[%emt 0:00:00][%cal Bf6h5,Bh5g3,Bg3f1][%mdl 32] aiming for ...Ng3+.} 19. Qd3 {[%emt 0:00:00]} Ng3+ {[%emt 0:00:00]} (19... O-O {with more complications.} 20. Rb6 Qg3 21. Bg1 Nf4) 20. Kxh2 {[%emt 0:00:00]} Nxf1+ {[%emt 0:00:00]} 21. Kg1 {[%emt 0:00:00]} Nxe3 {[%emt 0:00:00]} 22. Qxe3 {[%emt 0:00:00]} O-O {[%emt 0:00:00]} 23. Rb6 {[%emt 0:00:00]} Qc7 {[%emt 0:00:00][%cal Oc6f3]} (23... Qa7 {simplifies} 24. Qa3 Qxa3 25. Nxa3 Ra8) 24. Qc5 {[%emt 0:00:00]} (24. Qe5 $15 Qd8 25. b3) 24... Qg3 {[%emt 0:05:00]} (24... Ra8 $17 {White must now prevent ...Qg3.} 25. Qd6 Qxd6 26. Nxd6 Kf8) 25. Qd6 {[%emt 0:01:53]} (25. Qe5 $15 {deserves consideration.} Qxe5 26. Nxe5) 25... Qe1+ {[%emt 0:00:00]} 26. Kh2 {[%emt 0:03:07]} Qh4+ {[%emt 0:00:00]} 27. Kg1 {[%emt 0:00:30]} h5 {[%emt 0:00:00]} (27... Qxc4 $2 {loses.} 28. Rb8 $18) 28. Ne5 {[%emt 0:00:00][%csl LRc6,LRd7][%cal Ob6b8]} Qf4 {[%emt 0:02:00] Strongly threatening ...Qe3+.} 29. Rb8 {[%emt 0:00:00]} Rxb8 {[%emt 0:00:00]} 30. Qxb8+ {[%emt 0:00:00]} Kh7 {[%emt 0:00:00]} 31. Nxc6 {[%emt 0:00:00][%mdl 4096] Endgame.} Qe3+ {[%emt 0:00:00]} 32. Kh2 {[%emt 0:00:00]} dxc6 $11 {[%emt 0:00:00] KQ-KQ} 33. Qc7 {[%emt 0:00:00][%csl LRc6,LRf7]} Kg6 {[%emt 0:00:00]} 34. Qxc6 {[%emt 0:00:00]} Qe5+ {[%emt 0:03:00]} 35. Kh1 {[%emt 0:04:00]} Qxb2 {[%emt 0:00:00]} 36. Qe4+ {[%emt 0:00:00]} Kg5 {[%emt 0:00:00] And now ...Qc1+ would win.} 37. f4+ {[%emt 0:00:00]} (37. Qe3+ $11 Kf5 38. Qe4+ Kg5 39. Qe3+ Kg6 40. Qe4+ Kh6 41. Qf4+ Kh7 42. Qxf7) 37... Kf6 $17 {[%emt 0:00:00]} 38. c4 {[%emt 0:00:00]} Qc3 {[%emt 0:02:00]} 39. Kg1 {[%emt 0:00:36]} g5 {[%emt 0:00:00]} ({Black should play} 39... h4 $17) 40. fxg5+ $15 {[%emt 0:00:34]} Kxg5 {[%emt 0:01:00] Threatens to win with ...Qc1+.} 41. Qc6 $1 {[%emt 0:01:07]} h4 {[%emt 0:00:00]} 42. c5 {[%emt 0:00:24]} Qe1+ {[%emt 0:00:00]} 43. Kh2 {[%emt 0:00:01]} Qg3+ {[%emt 0:00:00]} 44. Kh1 {[%emt 0:00:01]} h3 {[%emt 0:00:00]} 45. gxh3 {[%emt 0:00:12]} Qxh3+ {[%emt 0:00:00]} 46. Kg1 {[%emt 0:00:01]} Qe3+ {[%emt 0:00:00]} 47. Kh1 {[%emt 0:03:04]} Kf6 {[%emt 0:01:51]} 48. Qc8 {[%emt 0:00:00]} Qe1+ {[%emt 0:01:06]} 49. Kg2 {[%emt 0:00:00]} Qd2+ {[%emt 0:00:04]} 50. Kg1 {[%emt 0:00:00]} Qd4+ {[%emt 0:00:51]} 51. Kf1 {[%emt 0:00:26] White wants to mate with Qh8+.} Qd3+ {[%emt 0:00:24]} 52. Kg1 {[%emt 0:02:04] The position is equal.} Ke7 {[%emt 0:01:44] Hoping for ...Qd7.} 53. Qb7+ {[%emt 0:00:00]} Kd8 {[%emt 0:00:00]} 54. Qb8+ {[%emt 0:00:00]} Ke7 {[%emt 0:00:00] ...Qd4+ would now be deadly.} 55. Qb7+ {[%emt 0:00:00]} Kd8 {[%emt 0:00:13]} 56. Qb8+ {[%emt 0:00:00]} Ke7 {[%emt 0:00:14]} 57. Qb7+ {[%emt 0:00:00] Weighted Error Value: White=0.18 (very precise) /Black=0.16 (very precise) .  Mistake:       	White=5     	Black=3      Inaccurate:     	White=4     	Black=8      OK:         	White=12    	Black=13     Best:        	White=11    	Black=6      Strong:       	White=1     	---} 1/2-1/2

[Event "98th Caplin Hastings Masters 2024-25"]
[Site "Hastings"]
[Date "2025.01.03"]
[Round "9.6"]
[White "Grutter, Tim"]
[Black "Bazakutsa, Svyatoslav"]
[Result "1/2-1/2"]
[ECO "A07"]
[WhiteElo "2379"]
[BlackElo "2484"]
[Annotator "TA"]
[PlyCount "67"]
[EventDate "2024.12.23"]
[EventType "swiss"]
[EventCountry "ENG"]
[SourceTitle "playchess.com"]
[Source "ChessBase"]
[SourceQuality "1"]
[TimeControl "5400+30"]

{[%evp 17,67,6,11,22,8,0,0,0,8,-14,0,-6,0,0,0,0,-10,-8,0,0,0,0,0,0,0,0,15,0,6,0,0,0,22,26,26,21,16,19,25,15,14,13,16,20,9,12,14,17,22,22,37,0]} 1. e4 {[%emt 0:00:02]} c6 {[%emt 0:01:33]} 2. Nf3 {[%emt 0:00:10]} d5 {[%emt 0:00:09]} 3. Nc3 {[%emt 0:00:03]} dxe4 {[%emt 0:00:03]} 4. Nxe4 {[%emt 0:00:06]} Nf6 {[%emt 0:00:11]} 5. Qe2 {[%emt 0:00:04]} Bf5 {[%emt 0:00:05]} 6. d3 {[%emt 0:04:19]} e6 {[%emt 0:00:57]} 7. g3 {[%emt 0:03:19]} Nbd7 {[%emt 0:07:34]} 8. Bg2 {[%emt 0:01:19]} Be7 {[%emt 0:00:34]} 9. O-O {[%emt 0:00:32]} O-O {[%emt 0:02:17]} 10. a4 {[%emt 0:06:05]} a5 {[%emt 0:03:43]} 11. Nfd2 {[%emt 0:01:09][%cal Bf3d2,Bd2c4,Bc4e3][%mdl 32]} Nd5 {[%emt 0:10:31]} 12. Nc4 {[%emt 0:02:32]} Qc7 {[%emt 0:13:41]} 13. b3 {[%emt 0:04:19]} b5 {[%emt 0:11:03]} 14. Ne3 {[%emt 0:10:26]} Bxe4 {[%emt 0:01:48]} 15. dxe4 {[%emt 0:02:21]} Nc3 {[%emt 0:03:13]} 16. Qe1 {[%emt 0:02:46]} Bf6 {[%emt 0:01:00][%cal Oc3a4]} 17. Bb2 {[%emt 0:05:32]} b4 {[%emt 0:07:31][%cal Oc3e4]} 18. Nd1 {[%emt 0:08:16]} Nxd1 $1 {[%emt 0:07:50] Excellent horsemanship.} 19. Bxf6 $1 {[%emt 0:00:21]} Nxf6 {[%emt 0:05:58]} 20. Rxd1 {[%emt 0:00:29]} Rad8 {[%emt 0:02:25]} 21. Qe2 {[%emt 0:03:11]} e5 {[%emt 0:00:29]} 22. Qc4 {[%emt 0:03:56]} Qb6 {[%emt 0:01:12]} 23. Bf3 {[%emt 0:01:34]} g6 {[%emt 0:03:41]} 24. c3 {[%emt 0:03:10]} c5 {[%emt 0:03:51]} 25. Rxd8 {[%emt 0:02:58]} Rxd8 {[%emt 0:00:10]} 26. Rc1 {[%emt 0:00:46]} Rd2 {[%emt 0:07:56]} 27. cxb4 {[%emt 0:01:56]} cxb4 {[%emt 0:00:11]} 28. Qc5 {[%emt 0:00:13]} Qe6 {[%emt 0:03:00]} 29. Qc8+ {[%emt 0:02:00]} Qxc8 {[%emt 0:00:01]} 30. Rxc8+ {[%emt 0:00:05]} Kg7 {[%emt 0:00:05]} 31. Rc5 {[%emt 0:00:15][%csl LRa5,LRe5]} Rd3 {[%emt 0:00:05]} 32. Kg2 {[%emt 0:00:04]} Nd7 $1 {[%emt 0:01:04]} ({Reject} 32... Rxb3 33. Rxe5 Nd7 34. Rxa5 $16) 33. Rxa5 {[%emt 0:01:36] and Rd5 would now be decisive} Rxb3 {[%emt 0:00:03]} 34. Rd5 {[%emt 0:07:28]} 1/2-1/2